fUST/lending_fUST_20240721
["ID","MTS","AMOUNT","RATE_DAILY","PERIOD"]
[332809090,1721541043763,-500.0,0.00013698,2]
[332809091,1721541043773,-500.0,0.00013698,2]
[332809092,1721541043781,-1411.83,0.00013698,2]
[332809093,1721541043791,-500.0,0.00013698,2]
[332809094,1721541043802,-550.42298283,0.00013698,2]
[332809095,1721541043811,-500.0,0.00013698,2]
[332809096,1721541043820,-500.0,0.00013698,2]
[332809097,1721541043829,-500.0,0.00013698,2]
[332809098,1721541043838,-850.42,0.00013698,2]
[332809099,1721541043847,-631.49,0.00013698,2]
[332809100,1721541043857,-500.0,0.00013698,2]
[332809101,1721541043867,-500.0,0.00013698,2]
[332809102,1721541043877,-500.0,0.00013698,2]
[332809103,1721541043887,-500.0,0.00013698,2]
[332809104,1721541043899,-500.0,0.00013698,2]
[332809105,1721541043908,-291.18737094,0.00013698,2]
[332809106,1721541043917,-500.0,0.00013698,2]
[332809107,1721541043927,-500.0,0.00013698,2]
[332809108,1721541043939,-2621.65,0.00013698,2]
[332809109,1721541043950,-500.0,0.00013698,2]
[332809110,1721541043960,-858.14,0.00013698,2]
[332809111,1721541043971,-524.72,0.00013698,2]
[332809112,1721541043982,-500.0,0.00013698,2]
[332809113,1721541043992,-1693.08,0.00013698,2]
[332809114,1721541044004,-511.67133738,0.00013698,2]
[332809115,1721541044015,-500.0,0.00013698,2]
[332809116,1721541044025,-603.44,0.00013698,2]
[332809117,1721541044036,-617.37745255,0.00013698,2]
[332809118,1721541044047,-500.0,0.00013698,2]
[332809119,1721541044057,-500.0,0.00013698,2]
[332809120,1721541044067,-500.0,0.00013698,2]
[332809121,1721541044078,-1247.71,0.00013698,2]
[332809122,1721541044089,-500.0,0.00013698,2]
[332809123,1721541044099,-507.09727474,0.00013698,2]
[332809124,1721541044111,-500.0,0.00013698,2]
[332809125,1721541044123,-500.0,0.00013698,2]
[332809126,1721541044134,-574.15,0.00013698,2]
[332809127,1721541044145,-500.0,0.00013698,2]
[332809128,1721541044154,-500.0,0.00013698,2]
[332809129,1721541044165,-844.25,0.00013698,2]
[332809130,1721541044176,-500.0,0.00013698,2]
[332809131,1721541044188,-515.62998071,0.00013698,2]
[332809132,1721541044198,-738.99,0.00013698,2]
[332809133,1721541044210,-1554.0,0.00013698,2]
[332809134,1721541044221,-500.0,0.00013698,2]
[332809135,1721541044232,-500.6716079,0.00013698,2]
[332809136,1721541044243,-500.0,0.00013698,2]
[332809137,1721541044253,-500.0,0.00013698,2]
[332809138,1721541044263,-509.5921109,0.00013698,2]
[332809139,1721541044273,-500.0,0.00013698,2]
[332809140,1721541044283,-500.0,0.00013698,2]
[332809141,1721541044293,-500.0,0.00013698,2]
[332809142,1721541044304,-457.32546745,0.00013698,2]
[332809143,1721541044313,-500.0,0.00013698,2]
[332809144,1721541044322,-500.0,0.00013698,2]
[332809145,1721541044331,-500.0,0.00013698,2]
[332809146,1721541044341,-1962.59,0.00013698,2]
[332809147,1721541044351,-502.75342232,0.00013698,2]
[332809148,1721541044360,-501.2016491,0.00013698,2]
[332809149,1721541044370,-500.0,0.00013698,2]
[332809150,1721541044383,-1189.51,0.00013698,2]
[332809151,1721541044394,-505.38131075,0.00013698,2]
[332809152,1721541044405,-804.14,0.00013698,2]
[332809153,1721541044414,-1646.33,0.00013698,2]
[332809154,1721541044425,-500.0,0.00013698,2]
[332809155,1721541044434,-500.0,0.00013698,2]
[332809156,1721541044447,-1624.67,0.00013698,2]
[332809157,1721541044457,-1976.44,0.00013698,2]
[332809158,1721541044468,-500.0,0.00013698,2]
[332809159,1721541044479,-169.1445557,0.00013698,2]
[332809160,1721541044492,-668.01,0.00013698,2]
[332809161,1721541044502,-500.0,0.00013698,2]
[332809162,1721541044513,-191.97913078,0.00013698,2]
[332809163,1721541044523,-500.0,0.00013698,2]
[332809164,1721541044534,-310.81795827,0.00013698,2]
[332809165,1721541044544,-500.0,0.00013698,2]
[332809166,1721541044553,-500.0,0.00013698,2]
[332809167,1721541044564,-500.0,0.00013698,2]
[332809168,1721541044573,-861.29,0.00013698,2]
[332809169,1721541044582,-500.0,0.00013698,2]
[332809170,1721541044592,-846.94,0.00013698,2]
[332809171,1721541044602,-500.0,0.00013698,2]
[332809172,1721541044612,-548.5574355,0.00013698,2]
[332809173,1721541044622,-500.0,0.00013698,2]
[332809174,1721541044634,-500.0,0.00013698,2]
[332809175,1721541044645,-500.0,0.00013698,2]
[332809176,1721541044655,-526.16960824,0.00013698,2]
[332809177,1721541044665,-500.0,0.00013698,2]
[332809178,1721541044674,-500.0,0.00013698,2]
[332809179,1721541044683,-500.0,0.00013698,2]
[332809180,1721541044692,-500.0,0.00013698,2]
[332809181,1721541044702,-500.0,0.00013698,2]
[332809182,1721541044711,-549.44249612,0.00013698,2]
[332809183,1721541044720,-601.89,0.00013698,2]
[332809184,1721541044729,-1219.61,0.00013698,2]
[332809185,1721541044739,-573.92873852,0.00013698,2]
[332809186,1721541044748,-869.65,0.00013698,2]
[332809187,1721541044757,-504.47672826,0.00013698,2]
[332809188,1721541044767,-500.0,0.00013698,2]
[332809189,1721541044777,-2349.57,0.00013698,2]
[332809190,1721541044788,-500.0,0.00013698,2]
[332809191,1721541044797,-500.0,0.00013698,2]
[332809192,1721541044807,-518.81684462,0.00013698,2]
[332809193,1721541044816,-735.22,0.00013698,2]
[332809194,1721541044826,-504.68,0.00013698,2]
[332809195,1721541044835,-500.0,0.00013698,2]
[332809196,1721541044844,-500.0,0.00013698,2]
[332809197,1721541044854,-5625.7,0.00013698,2]
[332809198,1721541044863,-3609.17,0.00013698,2]
[332809199,1721541044872,-500.0,0.00013698,2]
[332809200,1721541044883,-763.95,0.00013698,2]
[332809201,1721541044892,-949.06,0.00013698,2]
[332809202,1721541044902,-500.0,0.00013698,2]
[332809203,1721541044912,-500.0,0.00013698,2]
[332809204,1721541044921,-741.1,0.00013698,2]
[332809205,1721541044931,-526.98,0.00013698,2]
[332809206,1721541044941,-500.0,0.00013698,2]
[332809207,1721541044951,-500.0,0.00013698,2]
[332809208,1721541044961,-501.95006325,0.00013698,2]
[332809209,1721541044970,-500.0,0.00013698,2]
[332809210,1721541044980,-989.42,0.00013698,2]
[332809211,1721541044990,-500.0,0.00013698,2]
[332809212,1721541044999,-500.0,0.00013698,2]
[332809213,1721541045009,-500.0,0.00013698,2]
[332809214,1721541045018,-500.0,0.00013698,2]
[332809215,1721541045028,-500.0,0.00013698,2]
[332809216,1721541045039,-166.46989288,0.00013698,2]
[332809217,1721541045048,-500.0,0.00013698,2]
[332809218,1721541045058,-500.0,0.00013698,2]
[332809219,1721541045068,-500.0,0.00013698,2]
[332809220,1721541045077,-500.0,0.00013698,2]
[332809221,1721541045088,-500.0,0.00013698,2]
[332809222,1721541045097,-500.0,0.00013698,2]
[332809223,1721541045111,-500.0,0.00013698,2]
[332809224,1721541045120,-500.0,0.00013698,2]
[332809225,1721541045130,-500.0,0.00013698,2]
[332809226,1721541045139,-500.0,0.00013698,2]
[332809227,1721541045150,-500.0,0.00013698,2]
[332809228,1721541045159,-500.0,0.00013698,2]
[332809229,1721541045168,-500.0,0.00013698,2]
[332809230,1721541045178,-624.728192,0.00013698,2]
[332809231,1721541045188,-500.0,0.00013698,2]
[332809232,1721541045198,-646.26,0.00013698,2]
[332809233,1721541045208,-501.44774616,0.00013698,2]
[332809234,1721541045217,-2570.26,0.00013698,2]
[332809235,1721541045398,-547.59,0.00013698,2]
[332809236,1721541045409,-500.0,0.00013698,2]
[332809237,1721541045420,-547.13910122,0.00013698,2]
[332809238,1721541045430,-2118.98,0.00013698,2]
[332809239,1721541045441,-631.37,0.00013698,2]
[332809240,1721541045451,-500.0,0.00013698,2]
[332809241,1721541045461,-915.58,0.00013698,2]
[332809242,1721541045472,-500.0,0.00013698,2]
[332809243,1721541045482,-622.97,0.00013698,2]
[332809245,1721541045492,-503.48450541,0.00013698,2]
[332809247,1721541045502,-1301.76,0.00013698,2]
[332809249,1721541045512,-3122.49,0.00013698,2]
[332809251,1721541045522,-500.0,0.00013698,2]
[332809253,1721541045532,-500.0,0.00013698,2]
[332809255,1721541045542,-500.0,0.00013698,2]
[332809257,1721541045552,-500.0,0.00013698,2]
[332809259,1721541045562,-500.0,0.00013698,2]
[332809261,1721541045571,-500.0,0.00013698,2]
[332809263,1721541045581,-500.0,0.00013698,2]
[332809265,1721541045590,-500.0,0.00013698,2]
[332809267,1721541045601,-500.0,0.00013698,2]
[332809269,1721541045610,-504.08045759,0.00013698,2]
[332809271,1721541045619,-500.0,0.00013698,2]
[332809272,1721541045629,-500.0,0.00013698,2]
[332809274,1721541045639,-523.66,0.00013698,2]
[332809276,1721541045648,-509.85901008,0.00013698,2]
[332809278,1721541045658,-500.0,0.00013698,2]
[332809280,1721541045667,-500.0,0.00013698,2]
[332809282,1721541045677,-1763.0,0.00013698,2]
[332809284,1721541045687,-500.0,0.00013698,2]
[332809286,1721541045696,-7203.23,0.00013698,2]
[332809288,1721541045706,-500.0,0.00013698,2]
[332809290,1721541045715,-500.0,0.00013698,2]
[332809292,1721541045725,-500.0,0.00013698,2]
[332809294,1721541045734,-1988.62,0.00013698,2]
[332809296,1721541045744,-500.0,0.00013698,2]
[332809298,1721541045754,-1013.55,0.00013698,2]
[332809301,1721541045764,-1191.93,0.00013698,2]
[332809304,1721541045774,-503.64244037,0.00013698,2]
[332809307,1721541045784,-503.29603639,0.00013698,2]
[332809309,1721541045793,-500.0,0.00013698,2]
[332809312,1721541045803,-500.0,0.00013698,2]
[332809313,1721541045812,-500.0,0.00013698,2]
[332809314,1721541045822,-548.43,0.00013698,2]
[332809315,1721541045832,-500.0,0.00013698,2]
[332809316,1721541045842,-500.0,0.00013698,2]
[332809318,1721541045851,-500.0,0.00013698,2]
[332809320,1721541045860,-500.0,0.00013698,2]
[332809322,1721541045870,-500.0,0.00013698,2]
[332809324,1721541045880,-780.96,0.00013698,2]
[332809326,1721541045890,-500.0,0.00013698,2]
[332809328,1721541045899,-500.0,0.00013698,2]
[332809331,1721541045908,-500.0,0.00013698,2]
[332809333,1721541045919,-500.0,0.00013698,2]
[332809335,1721541045929,-4091.02,0.00013698,2]
[332809337,1721541045938,-574.71,0.00013698,2]
[332809339,1721541045948,-1714.2,0.00013698,2]
[332809341,1721541045957,-5252.85,0.00013698,2]
[332809344,1721541045967,-7539.47,0.00013698,2]
[332809347,1721541045977,-500.0,0.00013698,2]
[332809349,1721541045987,-500.0,0.00013698,2]
[332809351,1721541045997,-500.0,0.00013698,2]
[332809353,1721541046008,-500.0,0.00013698,2]
[332809356,1721541046018,-500.42433486,0.00013698,2]
[332809358,1721541046028,-500.0,0.00013698,2]
[332809360,1721541046039,-500.0,0.00013698,2]
[332809362,1721541046049,-500.0,0.00013698,2]
[332809364,1721541046058,-500.0,0.00013698,2]
[332809366,1721541046067,-500.0,0.00013698,2]
[332809368,1721541046077,-500.0,0.00013698,2]
[332809370,1721541046087,-500.0,0.00013698,2]
[332809372,1721541046098,-2495.28,0.00013698,2]
[332809374,1721541046110,-244.92214874,0.00013698,2]
[332809376,1721541046120,-500.0,0.00013698,2]
[332809378,1721541046129,-501.1334757,0.00013698,2]
[332809381,1721541046138,-500.0,0.00013698,2]
[332809384,1721541046149,-595.3,0.00013698,2]
[332809386,1721541046158,-500.0,0.00013698,2]
[332809389,1721541046167,-500.0,0.00013698,2]
[332809392,1721541046177,-617.30917,0.00013698,2]
[332809394,1721541046187,-617.30917,0.00013698,2]
[332809396,1721541046196,-2765.09,0.00013698,2]
[332809398,1721541046205,-764.43,0.00013698,2]
[332809400,1721541046214,-617.30917,0.00013698,2]
[332809402,1721541046224,-7537.32,0.00013698,2]
[332809404,1721541046233,-500.0,0.00013698,2]
[332809406,1721541046242,-617.30917,0.00013698,2]
[332809408,1721541046252,-617.30917,0.00013698,2]
[332809410,1721541046262,-617.30917,0.00013698,2]
[332809412,1721541046271,-573.74,0.00013698,2]
[332809414,1721541046281,-16900.37,0.00013698,2]
[332809416,1721541046292,-500.0,0.00013698,2]
[332809418,1721541046301,-508.05205072,0.00013698,2]
[332809420,1721541046311,-519.48229262,0.00013698,2]
[332809422,1721541046320,-500.0,0.00013698,2]
[332809424,1721541046329,-500.0,0.00013698,2]
[332809426,1721541046339,-500.0,0.00013698,2]
[332809428,1721541046349,-1257.69,0.00013698,2]
[332809430,1721541046358,-500.0,0.00013698,2]
[332809432,1721541046368,-501.5293362,0.00013698,2]
[332809434,1721541046378,-500.0,0.00013698,2]
[332809436,1721541046388,-500.0,0.00013698,2]
[332809438,1721541046398,-480.92618224,0.00013698,2]
[332809440,1721541046408,-1407.54,0.00013698,2]
[332809442,1721541046418,-502.58812727,0.00013698,2]
[332809443,1721541046427,-500.0,0.00013698,2]
[332809444,1721541046437,-500.0,0.00013698,2]
[332809446,1721541046447,-1969.99,0.00013698,2]
[332809448,1721541046456,-500.0,0.00013698,2]
[332809450,1721541046466,-500.0,0.00013698,2]
[332809452,1721541046475,-646.41911865,0.00013698,2]
[332809454,1721541046485,-500.0,0.00013698,2]
[332809456,1721541046495,-505.15585525,0.00013698,2]
[332809458,1721541046505,-500.0,0.00013698,2]
[332809460,1721541046515,-714.32,0.00013698,2]
[332809462,1721541046525,-504.82506107,0.00013698,2]
[332809464,1721541046537,-500.0,0.00013698,2]
[332809466,1721541046547,-2812.07,0.00013698,2]
[332809468,1721541046557,-603.13559602,0.00013698,2]
[332809470,1721541046567,-905.41,0.00013698,2]
[332809472,1721541046576,-500.0,0.00013698,2]
[332809474,1721541046586,-2464.77,0.00013698,2]
[332809476,1721541046596,-820.98,0.00013698,2]
[332809478,1721541046605,-500.0,0.00013698,2]
[332809480,1721541046615,-500.0,0.00013698,2]
[332809482,1721541046624,-1048.19,0.00013698,2]
[332809484,1721541046634,-500.0,0.00013698,2]
[332809486,1721541046643,-4683.45,0.00013698,2]
[332809488,1721541046652,-501.34951286,0.00013698,2]
[332809490,1721541046661,-500.0,0.00013698,2]
[332809492,1721541046671,-500.0,0.00013698,2]
[332809494,1721541046680,-500.0,0.00013698,2]
[332809496,1721541046689,-500.0,0.00013698,2]
[332809498,1721541046699,-500.0,0.00013698,2]
[332809500,1721541046708,-500.0,0.00013698,2]
[332809502,1721541046718,-500.0,0.00013698,2]
[332809504,1721541046728,-500.0,0.00013698,2]
[332809506,1721541046738,-500.0,0.00013698,2]
[332809508,1721541046747,-500.0,0.00013698,2]
[332809510,1721541046756,-500.0,0.00013698,2]
[332809512,1721541046766,-500.0,0.00013698,2]
[332809515,1721541046776,-500.0,0.00013698,2]
[332809517,1721541046786,-500.0,0.00013698,2]
[332809519,1721541046796,-272.43551272,0.00013698,2]
[332809521,1721541046806,-500.0,0.00013698,2]
[332809523,1721541046816,-500.0,0.00013698,2]
[332809525,1721541046826,-500.0,0.00013698,2]
[332809526,1721541046836,-614.77,0.00013698,2]
[332809528,1721541046845,-500.0,0.00013698,2]
[332809529,1721541046855,-500.0,0.00013698,2]
[332809530,1721541046865,-553.50097455,0.00013698,2]
[332809531,1721541046875,-500.0,0.00013698,2]
[332809532,1721541046884,-500.0,0.00013698,2]
[332809533,1721541046895,-506.8348777,0.00013698,2]
[332809534,1721541046904,-501.43167891,0.00013698,2]
[332809535,1721541046914,-151.08037957,0.00013698,2]
[332809537,1721541047218,-395.52962043,0.00013698,2]
[332809538,1721541047229,-500.0,0.00013698,2]
[332809539,1721541047241,-500.0,0.00013698,2]
[332809540,1721541047251,-500.0,0.00013698,2]
[332809541,1721541047262,-1087.81,0.00013698,2]
[332809542,1721541047271,-506.40127866,0.00013698,2]
[332809543,1721541047283,-500.0,0.00013698,2]
[332809544,1721541047294,-1246.68,0.00013698,2]
[332809545,1721541047304,-1830.32,0.00013698,2]
[332809546,1721541047313,-10757.27,0.00013698,2]
[332809547,1721541047323,-500.0,0.00013698,2]
[332809548,1721541047333,-493.88105072,0.00013698,2]
[332809550,1721541990185,-154.76012181,9.999e-05,2]
[332809551,1721541990208,-114.30236174,0.00010959,2]
[332809552,1721542145111,-240.51585871,9.999e-05,2]
[332809553,1721542145133,-5238.70060105,0.00010859,2]
[332809554,1721542145163,-690.62,0.00010959,2]
[332809555,1721542145194,-218.09499306,0.00010959,2]
[332809556,1721542145217,-157.50132365,0.00010959,2]
[332809557,1721542145241,-196.0344217,0.00011591,2]
[332809558,1721542145265,-178.49381,0.00011841,2]
[332809559,1721542145289,-178.49381,0.00012047,2]
[332809560,1721542145312,-300.0,0.00012072,2]
[332809561,1721542145335,-300.0,0.00012072,2]
[332809562,1721542145357,-9082.20886109,0.00012073,2]
[332809640,1721542238281,-182.44764711,9.999e-05,2]
[332809641,1721542238291,-15817.79113891,0.00012073,2]
[332809642,1721542238301,-19440.57551927,0.00012073,2]
[332809643,1721542238310,-218.09499306,0.00012073,2]
[332809644,1721542238320,-269.06248355,0.00012119,2]
[332809645,1721542238331,-178.49381,0.00012252,2]
[332809646,1721542238342,-178.49381,0.00012458,2]
[332809647,1721542238355,-4878.95857524,0.00013273,2]
[332809648,1721542238366,-294.08597755,0.00013283,2]
[332809649,1721542238377,-367.35615468,0.00013425,2]
[332809650,1721542238387,-2439.47928762,0.00013488,2]
[332809651,1721542238399,-5304.19710114,0.00013497,2]
[332809652,1721542238409,-39031.6686019,0.00013688,2]
[332809653,1721542238419,-2378.24,0.00013698,2]
[332809654,1721542238429,-2378.24,0.00013698,2]
[332809655,1721542238440,-2378.24,0.00013698,2]
[332809656,1721542238452,-2378.24,0.00013698,2]
[332809657,1721542238461,-2378.24,0.00013698,2]
[332809658,1721542238471,-2378.24,0.00013698,2]
[332809659,1721542238482,-2378.24,0.00013698,2]
[332809660,1721542238493,-2378.24,0.00013698,2]
[332809661,1721542238504,-2378.24,0.00013698,2]
[332809662,1721542238515,-2378.24,0.00013698,2]
[332809663,1721542238528,-2378.24,0.00013698,2]
[332809664,1721542238540,-2378.24,0.00013698,2]
[332809665,1721542238551,-2378.24,0.00013698,2]
[332809666,1721542238563,-2378.24,0.00013698,2]
[332809667,1721542238572,-2378.24,0.00013698,2]
[332809668,1721542238583,-2378.24,0.00013698,2]
[332809669,1721542238594,-2378.24,0.00013698,2]
[332809670,1721542238604,-2378.24,0.00013698,2]
[332809671,1721542238613,-2378.24,0.00013698,2]
[332809672,1721542238623,-2378.24,0.00013698,2]
[332809673,1721542238632,-2378.24,0.00013698,2]
[332809674,1721542238643,-2378.24,0.00013698,2]
[332809675,1721542238653,-2378.24,0.00013698,2]
[332809676,1721542238664,-2378.47372288,0.00013698,2]
[332809677,1721542238675,-500.0,0.00013698,2]
[332809678,1721542238686,-502.14615165,0.00013698,2]
[332809679,1721542238696,-500.0,0.00013698,2]
[332809680,1721542238720,-500.0,0.00013698,2]
[332809681,1721542238743,-500.0,0.00013698,2]
[332809682,1721542238761,-500.0,0.00013698,2]
[332809683,1721542238787,-506.44277005,0.00013698,2]
[332809684,1721542238815,-500.0,0.00013698,2]
[332809685,1721542238837,-513.04389013,0.00013698,2]
[332809686,1721542238860,-500.0,0.00013698,2]
[332809687,1721542238883,-500.0,0.00013698,2]
[332809688,1721542238908,-500.0,0.00013698,2]
[332809689,1721542238928,-500.0,0.00013698,2]
[332809690,1721542238951,-500.0,0.00013698,2]
[332809691,1721542238969,-500.0,0.00013698,2]
[332809692,1721542238978,-503.23587098,0.00013698,2]
[332809693,1721542238987,-500.0,0.00013698,2]
[332809694,1721542238997,-500.0,0.00013698,2]
[332809695,1721542239006,-502.17138118,0.00013698,2]
[332809696,1721542239015,-519.0532503,0.00013698,2]
[332809697,1721542239024,-519.63091483,0.00013698,2]
[332809698,1721542239034,-502.80562634,0.00013698,2]
[332809699,1721542239043,-501.33508252,0.00013698,2]
[332809700,1721542239052,-500.0,0.00013698,2]
[332809701,1721542239061,-506.25486992,0.00013698,2]
[332809702,1721542239070,-500.0,0.00013698,2]
[332809703,1721542239080,-500.0,0.00013698,2]
[332809704,1721542239089,-500.0,0.00013698,2]
[332809705,1721542239098,-500.0,0.00013698,2]
[332809706,1721542239107,-504.86194767,0.00013698,2]
[332809707,1721542239117,-500.0,0.00013698,2]
[332809708,1721542239126,-500.0,0.00013698,2]
[332809709,1721542239137,-500.0,0.00013698,2]
[332809710,1721542239151,-500.0,0.00013698,2]
[332809711,1721542239161,-500.0,0.00013698,2]
[332809712,1721542239170,-501.09062713,0.00013698,2]
[332809713,1721542239179,-500.0,0.00013698,2]
[332809714,1721542239188,-931.1,0.00013698,2]
[332809715,1721542239199,-500.0,0.00013698,2]
[332809716,1721542239209,-509.39,0.00013698,2]
[332809717,1721542239218,-500.0,0.00013698,2]
[332809718,1721542239227,-500.0,0.00013698,2]
[332809719,1721542239236,-500.0,0.00013698,2]
[332809720,1721542239245,-500.0,0.00013698,2]
[332809721,1721542239254,-624.2,0.00013698,2]
[332809722,1721542239263,-558.39,0.00013698,2]
[332809723,1721542239272,-500.0,0.00013698,2]
[332809724,1721542239284,-500.0,0.00013698,2]
[332809725,1721542239293,-500.0,0.00013698,2]
[332809726,1721542239302,-500.0,0.00013698,2]
[332809727,1721542239312,-500.0,0.00013698,2]
[332809728,1721542239322,-500.0,0.00013698,2]
[332809729,1721542239331,-505.23104049,0.00013698,2]
[332809730,1721542239341,-500.0,0.00013698,2]
[332809731,1721542239350,-500.0,0.00013698,2]
[332809732,1721542239362,-500.0,0.00013698,2]
[332809733,1721542239373,-500.0,0.00013698,2]
[332809734,1721542239382,-500.0,0.00013698,2]
[332809735,1721542239394,-502.40607117,0.00013698,2]
[332809736,1721542239403,-500.0,0.00013698,2]
[332809737,1721542239413,-500.0,0.00013698,2]
[332809738,1721542239422,-500.0,0.00013698,2]
[332809739,1721542239431,-500.0,0.00013698,2]
[332809740,1721542239441,-1426.94,0.00013698,2]
[332809741,1721542239450,-1120.1,0.00013698,2]
[332809742,1721542239460,-1426.94,0.00013698,2]
[332809743,1721542239469,-1426.94,0.00013698,2]
[332809744,1721542239480,-1426.94,0.00013698,2]
[332809745,1721542239489,-1426.94,0.00013698,2]
[332809746,1721542239499,-1426.94,0.00013698,2]
[332809747,1721542239508,-1426.94,0.00013698,2]
[332809748,1721542239518,-1426.94,0.00013698,2]
[332809749,1721542239528,-1426.94,0.00013698,2]
[332809750,1721542239538,-1426.94,0.00013698,2]
[332809751,1721542239547,-1426.94,0.00013698,2]
[332809752,1721542239558,-1426.94,0.00013698,2]
[332809753,1721542239569,-1426.94,0.00013698,2]
[332809754,1721542239580,-1426.94,0.00013698,2]
[332809755,1721542239591,-1426.94,0.00013698,2]
[332809756,1721542239602,-1426.94,0.00013698,2]
[332809757,1721542239612,-1426.94,0.00013698,2]
[332809758,1721542239623,-1426.94,0.00013698,2]
[332809759,1721542239634,-1426.94,0.00013698,2]
[332809760,1721542239644,-1426.94,0.00013698,2]
[332809761,1721542239655,-613.67,0.00013698,2]
[332809762,1721542239665,-1426.94,0.00013698,2]
[332809763,1721542239676,-1426.94,0.00013698,2]
[332809764,1721542239687,-1426.94,0.00013698,2]
[332809765,1721542239700,-1427.09,0.00013698,2]
[332809766,1721542239710,-500.0,0.00013698,2]
[332809767,1721542239720,-631.7,0.00013698,2]
[332809768,1721542239731,-508.41832404,0.00013698,2]
[332809769,1721542239743,-500.0,0.00013698,2]
[332809770,1721542239752,-500.0,0.00013698,2]
[332809771,1721542239764,-500.0,0.00013698,2]
[332809772,1721542239774,-500.0,0.00013698,2]
[332809773,1721542239784,-500.0,0.00013698,2]
[332809774,1721542239794,-500.0,0.00013698,2]
[332809775,1721542239806,-500.0,0.00013698,2]
[332809776,1721542239817,-500.0,0.00013698,2]
[332809777,1721542239828,-504.61777039,0.00013698,2]
[332809778,1721542239838,-500.0,0.00013698,2]
[332809779,1721542239849,-507.09727474,0.00013698,2]
[332809780,1721542239863,-718.49,0.00013698,2]
[332809781,1721542239872,-500.0,0.00013698,2]
[332809782,1721542239883,-500.0,0.00013698,2]
[332809783,1721542239893,-517.81637955,0.00013698,2]
[332809784,1721542239904,-500.0,0.00013698,2]
[332809785,1721542239913,-603.44,0.00013698,2]
[332809786,1721542239924,-500.0,0.00013698,2]
[332809787,1721542239935,-502.29925953,0.00013698,2]
[332809788,1721542239945,-1411.83,0.00013698,2]
[332809789,1721542239957,-1686.5,0.00013698,2]
[332809790,1721542239968,-500.0,0.00013698,2]
[332809791,1721542239977,-500.0,0.00013698,2]
[332809792,1721542239987,-631.49,0.00013698,2]
[332809793,1721542239998,-500.0,0.00013698,2]
[332809794,1721542240009,-500.0,0.00013698,2]
[332809795,1721542240021,-500.0,0.00013698,2]
[332809796,1721542240034,-500.0,0.00013698,2]
[332809797,1721542240043,-291.18737094,0.00013698,2]
[332809798,1721542240052,-564.62,0.00013698,2]
[332809799,1721542240061,-500.0,0.00013698,2]
[332809800,1721542240070,-500.0,0.00013698,2]
[332809801,1721542240080,-342.38173091,0.00013698,2]
[332809802,1721542240090,-500.0,0.00013698,2]
[332809803,1721542240100,-858.14,0.00013698,2]
[332809804,1721542240109,-500.0,0.00013698,2]
[332809805,1721542240118,-500.0,0.00013698,2]
[332809806,1721542240128,-514.31104745,0.00013698,2]
[332809807,1721542240137,-500.0,0.00013698,2]
[332809808,1721542240147,-500.0,0.00013698,2]
[332809809,1721542240159,-500.0,0.00013698,2]
[332809810,1721542240169,-500.0,0.00013698,2]
[332809811,1721542240178,-1511.37,0.00013698,2]
[332809812,1721542240187,-500.0,0.00013698,2]
[332809813,1721542240199,-500.0,0.00013698,2]